fUSD/lending_fUSD_20250618
["ID","MTS","AMOUNT","RATE_DAILY","PERIOD"]
[366367892,1750217438508,-1143.65,0.00016438,2]
[366367893,1750217438517,-490.0,0.00016438,2]
[366367894,1750217438527,-490.0,0.00016438,2]
[366367895,1750217438536,-490.0,0.00016438,2]
[366367896,1750217438546,-512.16,0.00016438,2]
[366367897,1750217438555,-490.0,0.00016438,2]
[366367898,1750217438565,-599.09,0.00016438,2]
[366367899,1750217438574,-490.0,0.00016438,2]
[366367900,1750217438583,-490.0,0.00016438,2]
[366367901,1750217438593,-490.0,0.00016438,2]
[366367902,1750217438603,-1307.25,0.00016438,2]
[366367903,1750217438613,-545.53,0.00016438,2]
[366367904,1750217438622,-229.66483243,0.00016438,2]
[366367905,1750217438631,-563.74,0.00016438,2]
[366367906,1750217438641,-490.0,0.00016438,2]
[366367907,1750217438652,-490.0,0.00016438,2]
[366367908,1750217438662,-490.0,0.00016438,2]
[366367909,1750217438671,-490.0,0.00016438,2]
[366367910,1750217438681,-490.0,0.00016438,2]
[366367911,1750217438690,-490.0,0.00016438,2]
[366367912,1750217438699,-490.0,0.00016438,2]
[366367913,1750217438709,-490.0,0.00016438,2]
[366367914,1750217438719,-513.62,0.00016438,2]
[366367915,1750217438728,-1139.36,0.00016438,2]
[366367916,1750217438738,-490.0,0.00016438,2]
[366367917,1750217438748,-490.0,0.00016438,2]
[366367918,1750217438759,-490.0,0.00016438,2]
[366367919,1750217438769,-490.0,0.00016438,2]
[366367920,1750217438778,-1000.0,0.00016438,2]
[366367921,1750217438788,-490.0,0.00016438,2]
[366367922,1750217438798,-490.0,0.00016438,2]
[366367923,1750217438807,-490.0,0.00016438,2]
[366367924,1750217438817,-490.0,0.00016438,2]
[366367925,1750217438827,-1070.85,0.00016438,2]
[366367926,1750217438836,-1169.39,0.00016438,2]
[366367927,1750217438846,-554.15678274,0.00016438,2]
[366367928,1750217438855,-528.87,0.00016438,2]
[366367929,1750217438865,-1465.79,0.00016438,2]
[366367930,1750217438875,-490.0,0.00016438,2]
[366367931,1750217438884,-490.0,0.00016438,2]
[366367932,1750217438894,-1545.8,0.00016438,2]
[366367933,1750217438903,-849.62,0.00016438,2]
[366367934,1750217438913,-490.0,0.00016438,2]
[366367935,1750217438923,-1254.25,0.00016438,2]
[366367936,1750217438932,-490.0,0.00016438,2]
[366367937,1750217438942,-506.79,0.00016438,2]
[366367938,1750217438951,-490.0,0.00016438,2]
[366367939,1750217438961,-660.99,0.00016438,2]
[366367940,1750217438970,-1015.45,0.00016438,2]
[366367941,1750217438979,-490.0,0.00016438,2]
[366367942,1750217438989,-490.0,0.00016438,2]
[366367943,1750217438999,-490.0,0.00016438,2]
[366367944,1750217439009,-601.01,0.00016438,2]
[366367945,1750217439019,-490.0,0.00016438,2]
[366367946,1750217439028,-1050.58,0.00016438,2]
[366367947,1750217439037,-490.0,0.00016438,2]
[366367948,1750217439047,-490.0,0.00016438,2]
[366367949,1750217439057,-1024.58,0.00016438,2]
[366367950,1750217439067,-573.5219759,0.00016438,2]
[366367951,1750217439077,-490.0,0.00016438,2]
[366367952,1750217439086,-490.0,0.00016438,2]
[366367953,1750217439096,-490.0,0.00016438,2]
[366367954,1750217439106,-663.95,0.00016438,2]
[366367955,1750217439116,-1132.08,0.00016438,2]
[366367956,1750217439125,-504.05,0.00016438,2]
[366367957,1750217439134,-490.0,0.00016438,2]
[366367958,1750217439143,-490.0,0.00016438,2]
[366367959,1750217439153,-490.0,0.00016438,2]
[366367960,1750217439163,-1191.54,0.00016438,2]
[366367961,1750217439172,-490.0,0.00016438,2]
[366367962,1750217439181,-751.07,0.00016438,2]
[366367963,1750217439190,-490.0,0.00016438,2]
[366367964,1750217439200,-852.84,0.00016438,2]
[366367965,1750217439210,-490.0,0.00016438,2]
[366367966,1750217439219,-1015.5,0.00016438,2]
[366367967,1750217439229,-596.11,0.00016438,2]
[366367968,1750217439238,-490.0,0.00016438,2]
[366367969,1750217439247,-1089.58,0.00016438,2]
[366367970,1750217439257,-833.06,0.00016438,2]
[366367971,1750217439266,-627.71,0.00016438,2]
[366367972,1750217439276,-490.0,0.00016438,2]
[366367973,1750217439285,-1208.22,0.00016438,2]
[366367974,1750217439296,-490.0,0.00016438,2]
[366367975,1750217439306,-236.27471644,0.00016438,2]
[366367976,1750217439316,-1519.9,0.00016438,2]
[366367978,1750217439326,-894.08,0.00016438,2]
[366367980,1750217439336,-507.52,0.00016438,2]
[366367981,1750217439346,-490.0,0.00016438,2]
[366367982,1750217439355,-965.67,0.00016438,2]
[366367983,1750217439364,-490.0,0.00016438,2]
[366367984,1750217439374,-490.0,0.00016438,2]
[366367985,1750217439383,-988.32,0.00016438,2]
[366367986,1750217439392,-472.68937345,0.00016438,2]
[366368006,1750217439902,-58.67062655,0.00016438,2]
[366368007,1750217439912,-267.4165799,0.00016438,2]
[366368008,1750217440099,-222.5834201,0.00016438,2]
[366368009,1750217440110,-722.8,0.00016438,2]
[366368010,1750217440120,-663.44,0.00016438,2]
[366368011,1750217440130,-490.0,0.00016438,2]
[366368012,1750217440140,-508.46584212,0.00016438,2]
[366368013,1750217440150,-603.81,0.00016438,2]
[366368014,1750217440159,-1017.37,0.00016438,2]
[366368016,1750217440168,-1415.4,0.00016438,2]
[366368017,1750217440178,-490.0,0.00016438,2]
[366368018,1750217440188,-124.57958022,0.00016438,2]
[366368019,1750217440200,-712.44041978,0.00016438,2]
[366368020,1750217440209,-125.13637464,0.00016438,2]
[366368021,1750217440220,-437.08693613,0.00016438,2]
[366368022,1750217440230,-113.0576656,0.00016438,2]
[366368023,1750217440242,-376.9423344,0.00016438,2]
[366368024,1750217440253,-494.62,0.00016438,2]
[366368025,1750217440262,-608.64,0.00016438,2]
[366368026,1750217440272,-490.0,0.00016438,2]
[366368027,1750217440282,-413.29766557,0.00016438,2]
[366368028,1750217440294,-76.70233443,0.00016438,2]
[366368029,1750217440303,-687.86,0.00016438,2]
[366368030,1750217440313,-490.0,0.00016438,2]
[366368031,1750217440322,-722.44092495,0.00016438,2]
[366368036,1750217440902,-106.22907505,0.00016438,2]
[366368037,1750217440911,-490.0,0.00016438,2]
[366368038,1750217440921,-493.3,0.00016438,2]
[366368039,1750217440931,-46.43660026,0.00016438,2]
[366368041,1750217442672,-1269.47339974,0.00016438,2]
[366368042,1750217442682,-546.56,0.00016438,2]
[366368043,1750217442691,-1956.67,0.00016438,2]
[366368044,1750217442701,-490.0,0.00016438,2]
[366368045,1750217442711,-490.0,0.00016438,2]
[366368046,1750217442720,-490.0,0.00016438,2]
[366368047,1750217442730,-569.39,0.00016438,2]
[366368048,1750217442739,-320.6378212,0.00016438,2]
[366368049,1750217442770,-169.3621788,0.00016438,2]
[366368050,1750217442780,-372.08342243,0.00016438,2]
[366368051,1750217442791,-392.24657757,0.00016438,2]
[366368052,1750217442801,-490.0,0.00016438,2]
[366368053,1750217442811,-490.0,0.00016438,2]
[366368054,1750217442822,-399.33595403,0.00016438,2]
[366368055,1750217442844,-90.66404597,0.00016438,2]
[366368056,1750217442854,-548.2,0.00016438,2]
[366368057,1750217442863,-490.0,0.00016438,2]
[366368058,1750217442873,-1104.86,0.00016438,2]
[366368059,1750217442882,-490.0,0.00016438,2]
[366368060,1750217442892,-653.98,0.00016438,2]
[366368061,1750217442901,-490.0,0.00016438,2]
[366368062,1750217442911,-917.98,0.00016438,2]
[366368063,1750217442920,-922.78,0.00016438,2]
[366368064,1750217442930,-490.0,0.00016438,2]
[366368065,1750217442939,-490.0,0.00016438,2]
[366368066,1750217442949,-490.0,0.00016438,2]
[366368067,1750217442959,-490.0,0.00016438,2]
[366368068,1750217442968,-490.0,0.00016438,2]
[366368069,1750217442978,-490.0,0.00016438,2]
[366368070,1750217442988,-1121.22,0.00016438,2]
[366368071,1750217442997,-16.83354625,0.00016438,2]
[366368072,1750217443011,-473.16645375,0.00016438,2]
[366368074,1750217443021,-490.0,0.00016438,2]
[366368076,1750217443030,-490.0,0.00016438,2]
[366368078,1750217443040,-490.0,0.00016438,2]
[366368081,1750217443050,-578.46,0.00016438,2]
[366368082,1750217443060,-490.0,0.00016438,2]
[366368085,1750217443070,-674.48,0.00016438,2]
[366368087,1750217443079,-1266.04,0.00016438,2]
[366368088,1750217443088,-490.0,0.00016438,2]
[366368090,1750217443098,-337.11901734,0.00016438,2]
[366368092,1750217443107,-1733.45,0.00016438,2]
[366368094,1750217443116,-700.11,0.00016438,2]
[366368096,1750217443126,-490.0,0.00016438,2]
[366368098,1750217443135,-490.0,0.00016438,2]
[366368100,1750217443144,-494.06,0.00016438,2]
[366368102,1750217443154,-424.87602909,0.00016438,2]
[366368105,1750217443170,-187.47397091,0.00016438,2]
[366368107,1750217443180,-490.0,0.00016438,2]
[366368109,1750217443190,-490.0,0.00016438,2]
[366368111,1750217443199,-629.86691383,0.00016438,2]
[366368112,1750217443209,-1636.41,0.00016438,2]
[366368113,1750217443218,-490.0,0.00016438,2]
[366368114,1750217443228,-490.0,0.00016438,2]
[366368115,1750217443237,-490.0,0.00016438,2]
[366368116,1750217443246,-490.0,0.00016438,2]
[366368117,1750217443256,-1036.35,0.00016438,2]
[366368118,1750217443266,-490.0,0.00016438,2]
[366368119,1750217443275,-619.26,0.00016438,2]
[366368120,1750217443284,-690.54,0.00016438,2]
[366368121,1750217443293,-520.23,0.00016438,2]
[366368122,1750217443303,-1413.02,0.00016438,2]
[366368123,1750217443312,-1087.22,0.00016438,2]
[366368124,1750217443322,-1213.28,0.00016438,2]
[366368125,1750217443331,-520.81660773,0.00016438,2]
[366368126,1750217443343,-92.93339227,0.00016438,2]
[366368127,1750217443352,-490.0,0.00016438,2]
[366368128,1750217443360,-1441.34,0.00016438,2]
[366368129,1750217443368,-490.0,0.00016438,2]
[366368130,1750217443377,-490.0,0.00016438,2]
[366368131,1750217443385,-611.91,0.00016438,2]
[366368132,1750217443394,-1067.63,0.00016438,2]
[366368133,1750217443402,-1145.32,0.00016438,2]
[366368134,1750217443411,-490.0,0.00016438,2]
[366368135,1750217443419,-596.67,0.00016438,2]
[366368136,1750217443427,-1815.02,0.00016438,2]
[366368137,1750217443434,-490.0,0.00016438,2]
[366368138,1750217443442,-490.0,0.00016438,2]
[366368139,1750217443450,-490.0,0.00016438,2]
[366368140,1750217443458,-2200.66,0.00016438,2]
[366368141,1750217443466,-1528.42,0.00016438,2]
[366368142,1750217443474,-485.07535759,0.00016438,2]
[366368143,1750217443482,-741.47,0.00016438,2]
[366368144,1750217443490,-490.0,0.00016438,2]
[366368145,1750217443498,-490.0,0.00016438,2]
[366368146,1750217443508,-497.08099398,0.00016438,2]
[366368147,1750217443516,-490.0,0.00016438,2]
[366368148,1750217443524,-490.0,0.00016438,2]
[366368149,1750217443533,-2688.92,0.00016438,2]
[366368150,1750217443541,-490.0,0.00016438,2]
[366368151,1750217443549,-606.73,0.00016438,2]
[366368152,1750217443557,-2207.66,0.00016438,2]
[366368153,1750217443565,-490.0,0.00016438,2]
[366368154,1750217443573,-490.0,0.00016438,2]
[366368155,1750217443582,-638.99,0.00016438,2]
[366368156,1750217443592,-490.0,0.00016438,2]
[366368157,1750217443602,-490.0,0.00016438,2]
[366368158,1750217443612,-680.24,0.00016438,2]
[366368159,1750217443622,-581.52,0.00016438,2]
[366368160,1750217443631,-490.0,0.00016438,2]
[366368161,1750217443641,-490.0,0.00016438,2]
[366368162,1750217443651,-490.0,0.00016438,2]
[366368163,1750217443660,-490.0,0.00016438,2]
[366368164,1750217443670,-1582.73,0.00016438,2]
[366368165,1750217443680,-493.58944597,0.00016438,2]
[366368166,1750217443690,-490.0,0.00016438,2]
[366368167,1750217443699,-490.0,0.00016438,2]
[366368168,1750217443709,-490.0,0.00016438,2]
[366368169,1750217443719,-112.88489423,0.00016438,2]
[366368170,1750217443739,-377.11510577,0.00016438,2]
[366368171,1750217443749,-618.17,0.00016438,2]
[366368172,1750217443760,-490.0,0.00016438,2]
[366368173,1750217443769,-500.0,0.00016438,2]
[366368174,1750217443779,-496.2,0.00016438,2]
[366368175,1750217443789,-1142.46,0.00016438,2]
[366368176,1750217443798,-490.0,0.00016438,2]
[366368177,1750217443808,-1171.18,0.00016438,2]
[366368178,1750217443818,-490.0,0.00016438,2]
[366368179,1750217443828,-490.0,0.00016438,2]
[366368180,1750217443838,-548.62,0.00016438,2]
[366368181,1750217443848,-629.75,0.00016438,2]
[366368182,1750217443858,-675.99,0.00016438,2]
[366368183,1750217443867,-491.59379975,0.00016438,2]
[366368184,1750217443877,-1901.7,0.00016438,2]
[366368185,1750217443887,-490.0,0.00016438,2]
[366368186,1750217443897,-490.0,0.00016438,2]
[366368187,1750217443906,-490.0,0.00016438,2]
[366368188,1750217443916,-1725.4,0.00016438,2]
[366368189,1750217443926,-490.0,0.00016438,2]
[366368190,1750217443935,-490.0,0.00016438,2]
[366368191,1750217443945,-490.0,0.00016438,2]
[366368192,1750217443955,-509.82926388,0.00016438,2]
[366368193,1750217443965,-1207.09,0.00016438,2]
[366368194,1750217443975,-490.0,0.00016438,2]
[366368195,1750217443984,-564.12,0.00016438,2]
[366368196,1750217443994,-490.0,0.00016438,2]
[366368197,1750217444004,-490.0,0.00016438,2]
[366368198,1750217444014,-490.0,0.00016438,2]
[366368199,1750217444023,-490.0,0.00016438,2]
[366368200,1750217444033,-490.0,0.00016438,2]
[366368201,1750217444043,-1892.17,0.00016438,2]
[366368202,1750217444052,-495.67813084,0.00016438,2]
[366368203,1750217444062,-602.92,0.00016438,2]
[366368204,1750217444071,-490.0,0.00016438,2]
[366368205,1750217444081,-490.0,0.00016438,2]
[366368206,1750217444091,-490.0,0.00016438,2]
[366368207,1750217444100,-490.0,0.00016438,2]
[366368208,1750217444110,-513.16,0.00016438,2]
[366368209,1750217444120,-490.0,0.00016438,2]
[366368210,1750217444130,-523.85,0.00016438,2]
[366368211,1750217444140,-490.0,0.00016438,2]
[366368212,1750217444150,-490.0,0.00016438,2]
[366368213,1750217444160,-490.0,0.00016438,2]
[366368214,1750217444170,-490.0,0.00016438,2]
[366368215,1750217444179,-587.63,0.00016438,2]
[366368216,1750217444189,-1919.19,0.00016438,2]
[366368217,1750217444198,-1394.21,0.00016438,2]
[366368218,1750217444208,-497.77917427,0.00016438,2]
[366368219,1750217444217,-512.42,0.00016438,2]
[366368220,1750217444227,-809.48,0.00016438,2]
[366368221,1750217444238,-504.94821231,0.00016438,2]
[366368222,1750217444248,-607.53797371,0.00016438,2]
[366368223,1750217444258,-492.27800736,0.00016438,2]
[366368224,1750217444268,-701.4,0.00016438,2]
[366368225,1750217444277,-490.0,0.00016438,2]
[366368226,1750217444286,-844.33,0.00016438,2]
[366368227,1750217444296,-2102.71,0.00016438,2]
[366368228,1750217444306,-661.58,0.00016438,2]
[366368229,1750217444315,-490.0,0.00016438,2]
[366368230,1750217444326,-531.12,0.00016438,2]
[366368231,1750217444335,-490.0,0.00016438,2]
[366368232,1750217444345,-490.0,0.00016438,2]
[366368233,1750217444354,-493.63960396,0.00016438,2]
[366368234,1750217444364,-568.74,0.00016438,2]
[366368235,1750217444374,-490.0,0.00016438,2]
[366368236,1750217444730,-221.91408277,0.00016438,2]
[366368237,1750217444755,-500.0,0.00016438,2]
[366368238,1750217444766,-539.26744461,0.00016438,2]
[366368239,1750217444777,-490.0,0.00016438,2]
[366368240,1750217444787,-490.0,0.00016438,2]
[366368241,1750217444798,-550.29288226,0.00016438,2]
[366368242,1750217444808,-490.0,0.00016438,2]
[366368243,1750217444818,-2150.59,0.00016438,2]
[366368244,1750217444832,-492.63474403,0.00016438,2]
[366368245,1750217444843,-1235.09,0.00016438,2]
[366368246,1750217444853,-490.0,0.00016438,2]
[366368247,1750217444863,-490.0,0.00016438,2]
[366368248,1750217444873,-490.0,0.00016438,2]
[366368249,1750217444884,-490.0,0.00016438,2]
[366368250,1750217444893,-495.05416711,0.00016438,2]
[366368251,1750217444903,-1312.38,0.00016438,2]
[366368252,1750217444913,-490.0,0.00016438,2]
[366368253,1750217444923,-935.7,0.00016438,2]
[366368254,1750217444933,-490.0,0.00016438,2]
[366368255,1750217444943,-1380.04,0.00016438,2]
[366368256,1750217444954,-490.0,0.00016438,2]
[366368257,1750217444964,-494.78096611,0.00016438,2]
[366368258,1750217444974,-490.0,0.00016438,2]
[366368259,1750217444984,-981.46,0.00016438,2]
[366368260,1750217444994,-490.0,0.00016438,2]
[366368261,1750217445004,-2154.03,0.00016438,2]
[366368262,1750217445014,-746.54,0.00016438,2]
[366368263,1750217445025,-490.0,0.00016438,2]
[366368264,1750217445034,-490.0,0.00016438,2]
[366368265,1750217445044,-1484.66,0.00016438,2]
[366368266,1750217445053,-1134.82,0.00016438,2]
[366368267,1750217445063,-882.49,0.00016438,2]
[366368268,1750217445073,-490.0,0.00016438,2]
[366368269,1750217445083,-490.0,0.00016438,2]
[366368270,1750217445093,-490.0,0.00016438,2]
[366368271,1750217445102,-490.0,0.00016438,2]
[366368272,1750217445112,-1210.74,0.00016438,2]
[366368273,1750217445121,-645.35,0.00016438,2]
[366368274,1750217445131,-490.0,0.00016438,2]
[366368275,1750217445142,-1656.36,0.00016438,2]
[366368276,1750217445152,-1107.37,0.00016438,2]
[366368277,1750217445162,-490.0,0.00016438,2]
[366368278,1750217445172,-773.1,0.00016438,2]
[366368279,1750217445182,-490.0,0.00016438,2]
[366368280,1750217445192,-2306.3,0.00016438,2]
[366368281,1750217445203,-490.0,0.00016438,2]
[366368282,1750217445213,-490.0,0.00016438,2]
[366368283,1750217445223,-490.0,0.00016438,2]
[366368284,1750217445232,-587.5,0.00016438,2]
[366368285,1750217445242,-1454.08,0.00016438,2]
[366368286,1750217445251,-490.0,0.00016438,2]
[366368287,1750217445261,-965.2,0.00016438,2]
[366368288,1750217445271,-490.0,0.00016438,2]
[366368289,1750217445281,-490.0,0.00016438,2]
[366368290,1750217445290,-490.0,0.00016438,2]
[366368291,1750217445300,-1500.43,0.00016438,2]
[366368292,1750217445310,-490.0,0.00016438,2]
[366368293,1750217445318,-490.0,0.00016438,2]
[366368294,1750217445326,-947.74,0.00016438,2]
[366368295,1750217445334,-490.0,0.00016438,2]
[366368296,1750217445343,-490.0,0.00016438,2]
[366368297,1750217445352,-496.56910102,0.00016438,2]
[366368298,1750217445361,-490.0,0.00016438,2]
[366368300,1750217445369,-1482.49,0.00016438,2]
[366368302,1750217445378,-465.02308826,0.00016438,2]
[366368303,1750217445387,-1294.35,0.00016438,2]
[366368304,1750217445397,-490.0,0.00016438,2]
[366368305,1750217445407,-490.0,0.00016438,2]
[366368306,1750217445416,-682.83,0.00016438,2]
[366368307,1750217445426,-599.34,0.00016438,2]
[366368308,1750217445435,-490.0,0.00016438,2]
[366368309,1750217445444,-1786.84,0.00016438,2]
[366368310,1750217445454,-490.0,0.00016438,2]
[366368311,1750217445464,-494.5662647,0.00016438,2]
[366368312,1750217445474,-490.0,0.00016438,2]
[366368313,1750217445483,-490.0,0.00016438,2]
[366368314,1750217445493,-574.33,0.00016438,2]
[366368315,1750217445504,-490.0,0.00016438,2]
[366368316,1750217445515,-506.29,0.00016438,2]
[366368317,1750217445524,-490.0,0.00016438,2]
[366368318,1750217445534,-500.0,0.00016438,2]
[366368319,1750217445544,-490.0,0.00016438,2]
[366368320,1750217445553,-500.0,0.00016438,2]
[366368321,1750217445563,-500.0,0.00016438,2]
[366368322,1750217445573,-533.65,0.00016438,2]
[366368323,1750217445583,-527.84,0.00016438,2]
[366368324,1750217445592,-1761.79,0.00016438,2]
[366368325,1750217445602,-512.89,0.00016438,2]
[366368326,1750217445611,-490.0,0.00016438,2]
[366368327,1750217445621,-634.95,0.00016438,2]
[366368328,1750217445631,-1474.17,0.00016438,2]
[366368329,1750217445640,-1211.04,0.00016438,2]
[366368330,1750217445650,-490.0,0.00016438,2]
[366368331,1750217445659,-490.0,0.00016438,2]
[366368332,1750217445670,-750.77,0.00016438,2]
[366368333,1750217445680,-490.0,0.00016438,2]
[366368334,1750217445689,-490.0,0.00016438,2]
[366368335,1750217445700,-680.73,0.00016438,2]
[366368336,1750217445710,-395.18341514,0.00016438,2]
[366368337,1750217445720,-599.17,0.00016438,2]
[366368338,1750217445731,-495.64,0.00016438,2]
[366368339,1750217445740,-4243.13,0.00016438,2]
[366368340,1750217445755,-490.0,0.00016438,2]
[366368341,1750217445765,-981.56,0.00016438,2]
[366368342,1750217445775,-126.36410442,0.00016438,2]
[366368343,1750217445794,-493.65589558,0.00016438,2]
[366368344,1750217445803,-490.0,0.00016438,2]
[366368345,1750217445813,-42.27953289,0.00016438,2]
[366368350,1750217446583,-505.49,0.00016438,2]
[366368351,1750217446594,-1784.77,0.00016438,2]
[366368352,1750217446604,-1071.89,0.00016438,2]
[366368353,1750217446614,-1074.11,0.00016438,2]
[366368354,1750217446624,-834.19,0.00016438,2]
[366368355,1750217446634,-1619.08,0.00016438,2]
[366368356,1750217446644,-3242.39,0.00016438,2]
[366368357,1750217446654,-1288.62,0.00016438,2]
[366368358,1750217446664,-7543.01,0.00016438,2]
[366368359,1750217446674,-1210.68,0.00016438,2]
[366368360,1750217446685,-490.0,0.00016438,2]
[366368361,1750217446695,-1428.04,0.00016438,2]
[366368362,1750217446705,-3476.29,0.00016438,2]
[366368363,1750217446715,-4022.58,0.00016438,2]
[366368364,1750217446725,-490.0,0.00016438,2]
[366368365,1750217446736,-680.2,0.00016438,2]
[366368366,1750217446747,-933.79,0.00016438,2]
[366368367,1750217446761,-490.0,0.00016438,2]
[366368368,1750217446771,-730.43,0.00016438,2]
[366368369,1750217446782,-490.0,0.00016438,2]
[366368370,1750217446792,-1788.78,0.00016438,2]
[366368371,1750217446803,-490.0,0.00016438,2]
[366368372,1750217446813,-490.0,0.00016438,2]
[366368373,1750217446824,-531.95,0.00016438,2]
[366368374,1750217446835,-490.0,0.00016438,2]
[366368375,1750217446846,-3046.6,0.00016438,2]
[366368376,1750217446856,-704.08,0.00016438,2]
[366368377,1750217446867,-755.32,0.00016438,2]
[366368378,1750217446877,-5809.88,0.00016438,2]
[366368379,1750217446887,-490.0,0.00016438,2]
[366368380,1750217446898,-490.0,0.00016438,2]
[366368381,1750217446908,-11315.82,0.00016438,2]
[366368382,1750217446919,-3011.87,0.00016438,2]
[366368383,1750217446929,-490.0,0.00016438,2]
[366368384,1750217446940,-1618.27,0.00016438,2]
[366368385,1750217446950,-1158.12,0.00016438,2]
[366368386,1750217446961,-2329.56,0.00016438,2]
[366368387,1750217446972,-490.0,0.00016438,2]
[366368388,1750217446983,-1568.11,0.00016438,2]
[366368389,1750217446993,-1139.4,0.00016438,2]
[366368390,1750217447003,-7293.66,0.00016438,2]
[366368391,1750217447014,-1562.53,0.00016438,2]
[366368392,1750217447024,-1200.65,0.00016438,2]
[366368393,1750217447035,-2836.82,0.00016438,2]
[366368394,1750217447044,-1662.34,0.00016438,2]
[366368395,1750217447054,-787.31,0.00016438,2]
[366368396,1750217447064,-3004.35,0.00016438,2]
[366368397,1750217447074,-490.0,0.00016438,2]
[366368398,1750217447084,-1498.35,0.00016438,2]
[366368399,1750217447188,-490.0,0.00016438,2]
[366368400,1750217447198,-490.0,0.00016438,2]
[366368401,1750217447208,-2398.32,0.00016438,2]
[366368402,1750217447218,-490.0,0.00016438,2]
[366368403,1750217447227,-4667.56,0.00016438,2]
[366368404,1750217447236,-490.0,0.00016438,2]
[366368405,1750217447247,-490.0,0.00016438,2]
[366368406,1750217447258,-911.14,0.00016438,2]
[366368407,1750217447267,-2243.31,0.00016438,2]
[366368408,1750217447277,-2007.53,0.00016438,2]
[366368409,1750217447286,-490.0,0.00016438,2]
[366368410,1750217447296,-492.74352286,0.00016438,2]
[366368411,1750217447305,-490.0,0.00016438,2]
[366368412,1750217447315,-490.0,0.00016438,2]
[366368413,1750217447324,-490.0,0.00016438,2]
[366368414,1750217447334,-517.52,0.00016438,2]
[366368415,1750217447343,-751.97,0.00016438,2]
[366368416,1750217447353,-490.0,0.00016438,2]
[366368417,1750217447363,-490.0,0.00016438,2]
[366368418,1750217447373,-2507.81,0.00016438,2]
[366368419,1750217447382,-490.0,0.00016438,2]
[366368420,1750217447392,-4014.81,0.00016438,2]
[366368421,1750217447401,-490.0,0.00016438,2]
[366368422,1750217447411,-490.0,0.00016438,2]
[366368423,1750217447420,-1204.72,0.00016438,2]
[366368424,1750217447430,-598.1,0.00016438,2]
[366368425,1750217447440,-491.71988105,0.00016438,2]
[366368426,1750217447450,-1114.62,0.00016438,2]
[366368427,1750217447460,-2493.75,0.00016438,2]
[366368428,1750217447470,-1610.85,0.00016438,2]
[366368429,1750217447480,-490.0,0.00016438,2]
[366368430,1750217447489,-490.0,0.00016438,2]
[366368431,1750217447499,-2896.1,0.00016438,2]
[366368432,1750217447509,-7522.55,0.00016438,2]
[366368433,1750217447519,-1986.92,0.00016438,2]
[366368434,1750217447529,-979.1,0.00016438,2]
[366368435,1750217447539,-490.0,0.00016438,2]
[366368436,1750217447548,-3577.41,0.00016438,2]
[366368437,1750217447558,-8150.7,0.00016438,2]
[366368438,1750217447568,-527.88,0.00016438,2]
[366368439,1750217447578,-490.0,0.00016438,2]
[366368440,1750217447587,-490.0,0.00016438,2]
[366368441,1750217447597,-2037.68,0.00016438,2]
[366368442,1750217447607,-490.0,0.00016438,2]
[366368443,1750217447617,-490.0,0.00016438,2]
[366368444,1750217447627,-438.89063379,0.00016438,2]